[Event "Late-Titled-Tuesday-Blitz-May-14-2024"]
[Site "Chess.com"]
[Date "2024.05.14"]
[Round "7"]
[White "FedaMaster"]
[Black "KebabJangles"]
[Result "0-1"]
[WhiteElo "2612"]
[BlackElo "2373"]
[TimeControl "180+1"]
[EndTime "15:15:52 PDT"]
[Termination "KebabJangles won by checkmate"]

1. d4 {[%clk 0:03:00.9]} 1... Nf6 {[%clk 0:01:40.3]} 2. c4 {[%clk 0:02:55.3]}
2... g6 {[%clk 0:01:38.1]} 3. h4 {[%clk 0:02:53.7]} 3... h6 {[%clk 0:01:35.7]}
4. Nc3 {[%clk 0:02:48.5]} 4... Bg7 {[%clk 0:01:35.5]} 5. Bf4 {[%clk 0:02:47.2]}
5... d6 {[%clk 0:01:34.3]} 6. Qd2 {[%clk 0:02:45.8]} 6... Nc6 {[%clk 0:01:31.1]}
7. O-O-O {[%clk 0:02:44.3]} 7... Nh5 {[%clk 0:01:31]} 8. Be3 {[%clk 0:02:43.2]}
8... e5 {[%clk 0:01:29.5]} 9. Nf3 {[%clk 0:02:40]} 9... exd4 {[%clk 0:01:25.2]}
10. Nxd4 {[%clk 0:02:39]} 10... Nxd4 {[%clk 0:01:21.2]} 11. Bxd4 {[%clk
0:02:37.4]} 11... O-O {[%clk 0:01:21.7]} 12. Bxg7 {[%clk 0:02:32.8]} 12... Kxg7
{[%clk 0:01:22.6]} 13. g4 {[%clk 0:02:28.8]} 13... Bxg4 {[%clk 0:01:21.8]} 14.
Qd4+ {[%clk 0:02:28.9]} 14... Nf6 {[%clk 0:01:20.8]} 15. h5 {[%clk 0:02:24.3]}
15... Bxh5 {[%clk 0:01:15.5]} 16. Rxh5 {[%clk 0:02:21.1]} 16... gxh5 {[%clk
0:01:14.9]} 17. Bh3 {[%clk 0:02:18.5]} 17... c5 {[%clk 0:01:02.4]} 18. Rg1+
{[%clk 0:02:16.1]} 18... Kh8 {[%clk 0:01:00]} 19. Qf4 {[%clk 0:02:13.5]} 19...
Nh7 {[%clk 0:00:51.4]} 20. Nd5 {[%clk 0:02:09.7]} 20... Rg8 {[%clk 0:00:48.4]}
21. Rxg8+ {[%clk 0:02:07.7]} 21... Qxg8 {[%clk 0:00:49.3]} 22. Qxd6 {[%clk
0:02:05]} 22... Rd8 {[%clk 0:00:45.7]} 23. Qxh6 {[%clk 0:02:01.8]} 23... Qg5+
{[%clk 0:00:45.4]} 24. Qxg5 {[%clk 0:02:02]} 24... Nxg5 {[%clk 0:00:46.3]} 25.
Bf5 {[%clk 0:02:01.7]} 25... b6 {[%clk 0:00:45.2]} 26. f4 {[%clk 0:02:01.3]}
26... Ne6 {[%clk 0:00:44.5]} 27. e3 {[%clk 0:02:01.4]} 27... Kg7 {[%clk
0:00:43.5]} 28. Kd2 {[%clk 0:01:58.5]} 28... Nc7 {[%clk 0:00:39]} 29. e4 {[%clk
0:01:57.5]} 29... Nxd5 {[%clk 0:00:39.2]} 30. cxd5 {[%clk 0:01:57.4]} 30... Kf6
{[%clk 0:00:39]} 31. Bh3 {[%clk 0:01:56.5]} 31... Ke7 {[%clk 0:00:38]} 32. Ke3
{[%clk 0:01:55.7]} 32... f6 {[%clk 0:00:38]} 33. Be6 {[%clk 0:01:52.7]} 33...
Kd6 {[%clk 0:00:37.7]} 34. Kf3 {[%clk 0:01:50.6]} 34... Rh8 {[%clk 0:00:37.6]}
35. Kg3 {[%clk 0:01:47.1]} 35... h4+ {[%clk 0:00:37.6]} 36. Kh3 {[%clk
0:01:47.2]} 36... c4 {[%clk 0:00:38]} 37. Bg4 {[%clk 0:01:41.2]} 37... b5 {[%clk
0:00:37.6]} 38. Be2 {[%clk 0:01:39.3]} 38... a6 {[%clk 0:00:36.5]} 39. Bf1
{[%clk 0:01:39.1]} 39... Kc5 {[%clk 0:00:36.5]} 40. Kg4 {[%clk 0:01:33.4]} 40...
Kd4 {[%clk 0:00:32.1]} 41. Bg2 {[%clk 0:01:22.6]} 41... b4 {[%clk 0:00:29.7]}
42. Kf5 {[%clk 0:01:20.3]} 42... c3 {[%clk 0:00:23.8]} 43. bxc3+ {[%clk
0:01:21.2]} 43... bxc3 {[%clk 0:00:24.7]} 44. Kxf6 {[%clk 0:01:19.6]} 44... c2
{[%clk 0:00:24.1]} 45. d6 {[%clk 0:01:18.9]} 45... c1=Q {[%clk 0:00:22.6]} 46.
f5 {[%clk 0:01:19.1]} 46... Qf4 {[%clk 0:00:21]} 47. d7 {[%clk 0:01:16.3]} 47...
Qd6+ {[%clk 0:00:20.3]} 48. Kg5 {[%clk 0:01:16.6]} 48... Qxd7 {[%clk 0:00:20.4]}
49. Kf4 {[%clk 0:01:16.7]} 49... Qd6+ {[%clk 0:00:20.5]} 50. Kg5 {[%clk
0:01:16.9]} 50... h3 {[%clk 0:00:20.8]} 51. Bf3 {[%clk 0:01:16.4]} 51... h2
{[%clk 0:00:21]} 52. f6 {[%clk 0:01:15.8]} 52... Ke5 {[%clk 0:00:21.1]} 53. f7
{[%clk 0:01:15.6]} 53... Qf6+ {[%clk 0:00:21.2]} 54. Kg4 {[%clk 0:01:16]} 54...
Qf4# {[%clk 0:00:21.7]} 0-1

[Event "Late-Titled-Tuesday-Blitz-May-14-2024"]
[Site "Chess.com"]
[Date "2024.05.14"]
[Round "7"]
[White "KaydenTroffChess"]
[Black "DishonorOnYourCow"]
[Result "1-0"]
[WhiteElo "2846"]
[BlackElo "2534"]
[TimeControl "180+1"]
[EndTime "15:15:59 PDT"]
[Termination "KaydenTroffChess won on time"]

1. d4 {[%clk 0:03:00.9]} 1... Nf6 {[%clk 0:02:58.4]} 2. Nf3 {[%clk 0:03:00.7]}
2... g6 {[%clk 0:02:57.9]} 3. Bg5 {[%clk 0:03:00.8]} 3... Ne4 {[%clk 0:02:57.5]}
4. Bh4 {[%clk 0:03:00.1]} 4... Bg7 {[%clk 0:02:57.6]} 5. e3 {[%clk 0:02:59.5]}
5... d5 {[%clk 0:02:58]} 6. Bd3 {[%clk 0:02:59.8]} 6... O-O {[%clk 0:02:58.4]}
7. Nbd2 {[%clk 0:03:00.1]} 7... Nxd2 {[%clk 0:02:55.5]} 8. Qxd2 {[%clk
0:03:00.3]} 8... c5 {[%clk 0:02:51.4]} 9. c3 {[%clk 0:02:57.6]} 9... cxd4 {[%clk
0:02:45.2]} 10. exd4 {[%clk 0:02:57.2]} 10... Nc6 {[%clk 0:02:45.8]} 11. O-O
{[%clk 0:02:57.5]} 11... Bg4 {[%clk 0:02:44.6]} 12. Qf4 {[%clk 0:02:53.1]} 12...
Qd7 {[%clk 0:02:38.9]} 13. Ne5 {[%clk 0:02:38.3]} 13... Nxe5 {[%clk 0:02:32.9]}
14. dxe5 {[%clk 0:02:38.1]} 14... f6 {[%clk 0:02:20.1]} 15. exf6 {[%clk
0:02:34.1]} 15... Bxf6 {[%clk 0:02:19.4]} 16. Bxf6 {[%clk 0:02:33]} 16... Rxf6
{[%clk 0:02:19.4]} 17. Qe5 {[%clk 0:02:33]} 17... Bf5 {[%clk 0:02:10.7]} 18.
Rad1 {[%clk 0:02:30.4]} 18... Raf8 {[%clk 0:02:04.6]} 19. Be2 {[%clk 0:02:21.3]}
19... e6 {[%clk 0:01:59]} 20. c4 {[%clk 0:02:20.7]} 20... Qf7 {[%clk 0:01:39.4]}
21. f3 {[%clk 0:01:56.6]} 21... Rc8 {[%clk 0:01:01.1]} 22. Rd4 {[%clk 0:01:49]}
22... Qf8 {[%clk 0:00:47.4]} 23. Rfd1 {[%clk 0:01:40.5]} 23... Rf7 {[%clk
0:00:40.9]} 24. cxd5 {[%clk 0:01:38.1]} 24... exd5 {[%clk 0:00:26.4]} 25. Qxd5
{[%clk 0:01:38]} 25... Rc5 {[%clk 0:00:15.1]} 26. Qb3 {[%clk 0:01:34]} 26... Kg7
{[%clk 0:00:12.8]} 27. Rd8 {[%clk 0:01:09.5]} 27... Qe7 {[%clk 0:00:12.7]} 28.
Bc4 {[%clk 0:01:08.2]} 28... Rf6 {[%clk 0:00:11.3]} 29. Qc3 {[%clk 0:00:58.7]}
29... b5 {[%clk 0:00:09.8]} 30. Rg8+ {[%clk 0:00:58]} 30... Kh6 {[%clk
0:00:08.6]} 31. Qd2+ {[%clk 0:00:58.5]} 31... Kh5 {[%clk 0:00:04.8]} 32. g4+
{[%clk 0:00:57.1]} 32... Bxg4 {[%clk 0:00:04.7]} 33. fxg4+ {[%clk 0:00:57.4]}
33... Kxg4 {[%clk 0:00:04.5]} 34. Be2+ {[%clk 0:00:51.4]} 34... Kh3 {[%clk
0:00:00.5]} 35. Qd3+ {[%clk 0:00:50.4]} 1-0

[Event "Late-Titled-Tuesday-Blitz-May-14-2024"]
[Site "Chess.com"]
[Date "2024.05.14"]
[Round "7"]
[White "yobdc"]
[Black "Nouali_Mohamed"]
[Result "1-0"]
[WhiteElo "2509"]
[BlackElo "2601"]
[TimeControl "180+1"]
[EndTime "15:16:03 PDT"]
[Termination "yobdc won on time"]

1. e4 {[%clk 0:02:57.7]} 1... c5 {[%clk 0:03:00.1]} 2. Nf3 {[%clk 0:02:57.6]}
2... Nc6 {[%clk 0:03:00.6]} 3. Bb5 {[%clk 0:02:56.7]} 3... Qc7 {[%clk 0:03:01]}
4. O-O {[%clk 0:02:55.7]} 4... e6 {[%clk 0:03:01.5]} 5. Re1 {[%clk 0:02:54.1]}
5... a6 {[%clk 0:03:01.8]} 6. Bxc6 {[%clk 0:02:53.5]} 6... Qxc6 {[%clk
0:03:02.7]} 7. d4 {[%clk 0:02:53.9]} 7... cxd4 {[%clk 0:03:03.1]} 8. Nxd4 {[%clk
0:02:54.8]} 8... Qc7 {[%clk 0:03:03.6]} 9. Nc3 {[%clk 0:02:55.1]} 9... h5 {[%clk
0:03:01.4]} 10. Qf3 {[%clk 0:02:38.9]} 10... Bd6 {[%clk 0:02:55.6]} 11. h3
{[%clk 0:02:20.7]} 11... Nf6 {[%clk 0:02:47.4]} 12. Bg5 {[%clk 0:02:18.9]} 12...
Be5 {[%clk 0:02:47.2]} 13. Rad1 {[%clk 0:02:16.9]} 13... b5 {[%clk 0:02:41.5]}
14. a4 {[%clk 0:02:05.7]} 14... b4 {[%clk 0:02:38.5]} 15. Nd5 {[%clk 0:02:05.9]}
15... exd5 {[%clk 0:02:32.5]} 16. exd5 {[%clk 0:02:06.2]} 16... d6 {[%clk
0:01:43.5]} 17. Bxf6 {[%clk 0:01:39.3]} 17... gxf6 {[%clk 0:01:44.4]} 18. Qxf6
{[%clk 0:01:38.8]} 18... Rg8 {[%clk 0:01:44]} 19. f4 {[%clk 0:00:56.5]} 19...
Bxh3 {[%clk 0:00:50.8]} 20. fxe5 {[%clk 0:00:56.1]} 20... dxe5 {[%clk
0:00:06.1]} 21. Rxe5+ {[%clk 0:00:50.4]} 21... Kf8 {[%clk 0:00:06.6]} 22. Qh6+
{[%clk 0:00:29.6]} 22... Rg7 {[%clk 0:00:06.5]} 23. Rg5 {[%clk 0:00:25.3]} 23...
f6 {[%clk 0:00:02.7]} 24. Qh8+ {[%clk 0:00:21.9]} 1-0

[Event "Late-Titled-Tuesday-Blitz-May-14-2024"]
[Site "Chess.com"]
[Date "2024.05.14"]
[Round "7"]
[White "el_sporco"]
[Black "Sanyura"]
[Result "0-1"]
[WhiteElo "2360"]
[BlackElo "2642"]
[TimeControl "180+1"]
[EndTime "15:16:07 PDT"]
[Termination "Sanyura won on time"]

1. e4 {[%clk 0:02:51.1]} 1... c5 {[%clk 0:02:59.3]} 2. Nf3 {[%clk 0:02:51]} 2...
e6 {[%clk 0:02:57.1]} 3. d4 {[%clk 0:02:51.1]} 3... cxd4 {[%clk 0:02:58]} 4.
Nxd4 {[%clk 0:02:51.7]} 4... Nc6 {[%clk 0:02:58.6]} 5. Nc3 {[%clk 0:02:52]} 5...
Nf6 {[%clk 0:02:59.1]} 6. Be2 {[%clk 0:02:50.6]} 6... Bb4 {[%clk 0:02:58.3]} 7.
O-O {[%clk 0:02:45]} 7... Bxc3 {[%clk 0:02:57.8]} 8. bxc3 {[%clk 0:02:45.9]}
8... Nxe4 {[%clk 0:02:57.9]} 9. Nxc6 {[%clk 0:02:12.9]} 9... bxc6 {[%clk
0:02:57.6]} 10. Qd4 {[%clk 0:02:06.8]} 10... d5 {[%clk 0:02:56.1]} 11. Qxg7
{[%clk 0:02:02.8]} 11... Qf6 {[%clk 0:02:55.2]} 12. Qxf6 {[%clk 0:02:03.3]}
12... Nxf6 {[%clk 0:02:56.1]} 13. c4 {[%clk 0:02:03.5]} 13... Rg8 {[%clk
0:02:56]} 14. Bb2 {[%clk 0:01:53.1]} 14... Ne4 {[%clk 0:02:54.6]} 15. cxd5
{[%clk 0:01:40]} 15... cxd5 {[%clk 0:02:54.1]} 16. Bd3 {[%clk 0:01:27]} 16...
Nc5 {[%clk 0:02:53.1]} 17. Bxh7 {[%clk 0:01:25.5]} 17... Rg5 {[%clk 0:02:51.7]}
18. Bd3 {[%clk 0:01:24.3]} 18... a5 {[%clk 0:02:42.7]} 19. Bc1 {[%clk
0:01:23.8]} 19... Rg8 {[%clk 0:02:41.9]} 20. Bb5+ {[%clk 0:01:22.1]} 20... Bd7
{[%clk 0:02:41.8]} 21. Bxd7+ {[%clk 0:01:21.1]} 21... Kxd7 {[%clk 0:02:41.7]}
22. Be3 {[%clk 0:01:21]} 22... Ne4 {[%clk 0:02:41.3]} 23. Rab1 {[%clk
0:01:17.9]} 23... Rac8 {[%clk 0:02:38.2]} 24. Rb7+ {[%clk 0:01:17.2]} 24... Rc7
{[%clk 0:02:36]} 25. Rxc7+ {[%clk 0:01:14.5]} 25... Kxc7 {[%clk 0:02:36.9]} 26.
Rb1 {[%clk 0:01:14.9]} 26... Nc3 {[%clk 0:02:32.6]} 27. Rb3 {[%clk 0:01:07.1]}
27... Nxa2 {[%clk 0:02:25.4]} 28. Bb6+ {[%clk 0:00:44.2]} 28... Kc6 {[%clk
0:02:25.3]} 29. Bxa5 {[%clk 0:00:45.1]} 29... Nc1 {[%clk 0:02:25.1]} 30. Rf3
{[%clk 0:00:44.1]} 30... Ra8 {[%clk 0:02:21.4]} 31. Be1 {[%clk 0:00:36.8]} 31...
Ra1 {[%clk 0:02:16]} 32. Kf1 {[%clk 0:00:36.3]} 32... f5 {[%clk 0:02:05.5]} 33.
h4 {[%clk 0:00:36.1]} 33... d4 {[%clk 0:02:01.1]} 34. h5 {[%clk 0:00:34]} 34...
d3 {[%clk 0:02:01.6]} 35. cxd3 {[%clk 0:00:33.5]} 35... Nb3 {[%clk 0:02:01.9]}
36. Ke2 {[%clk 0:00:29.8]} 36... Nd4+ {[%clk 0:02:01.7]} 37. Kf1 {[%clk
0:00:23]} 37... Nxf3 {[%clk 0:02:01.1]} 38. gxf3 {[%clk 0:00:23.9]} 38... Kd5
{[%clk 0:01:56.5]} 39. Ke2 {[%clk 0:00:18.6]} 39... e5 {[%clk 0:01:56.2]} 40. f4
{[%clk 0:00:17.1]} 40... e4 {[%clk 0:01:52]} 41. dxe4+ {[%clk 0:00:16.9]} 41...
Kxe4 {[%clk 0:01:52.6]} 42. f3+ {[%clk 0:00:16.8]} 42... Kxf4 {[%clk 0:01:52.3]}
43. Bd2+ {[%clk 0:00:16.3]} 43... Kg3 {[%clk 0:01:51.6]} 44. h6 {[%clk
0:00:17.2]} 44... Rh1 {[%clk 0:01:40.8]} 45. Be1+ {[%clk 0:00:13.5]} 45... Kg2
{[%clk 0:01:39.2]} 46. Bd2 {[%clk 0:00:14.4]} 46... Rh5 {[%clk 0:01:29.6]} 47.
Bf4 {[%clk 0:00:14.1]} 47... Rh3 {[%clk 0:01:26.9]} 48. Bg5 {[%clk 0:00:12.5]}
48... Rxf3 {[%clk 0:01:23.2]} 49. Bf6 {[%clk 0:00:03.6]} 49... Rh3 {[%clk
0:01:23]} 50. Bg5 {[%clk 0:00:04.1]} 50... Kg3 {[%clk 0:01:18.4]} 0-1

[Event "Late-Titled-Tuesday-Blitz-May-14-2024"]
[Site "Chess.com"]
[Date "2024.05.14"]
[Round "7"]
[White "karinachess1"]
[Black "Arystanner"]
[Result "0-1"]
[WhiteElo "2623"]
[BlackElo "2834"]
[TimeControl "180+1"]
[EndTime "15:16:10 PDT"]
[Termination "Arystanner won by resignation"]

1. d4 {[%clk 0:03:00.9]} 1... d5 {[%clk 0:02:57]} 2. c4 {[%clk 0:03:01]} 2... e6
{[%clk 0:02:57.4]} 3. Nc3 {[%clk 0:03:01.2]} 3... Nf6 {[%clk 0:02:58.1]} 4. cxd5
{[%clk 0:03:01.4]} 4... exd5 {[%clk 0:02:59]} 5. Bg5 {[%clk 0:03:01.6]} 5... c6
{[%clk 0:02:59.7]} 6. e3 {[%clk 0:03:02.1]} 6... Bd6 {[%clk 0:03:00.5]} 7. Bd3
{[%clk 0:03:02.5]} 7... O-O {[%clk 0:03:01.2]} 8. Qc2 {[%clk 0:03:02.8]} 8... h6
{[%clk 0:03:01.9]} 9. Bh4 {[%clk 0:03:03.3]} 9... Re8 {[%clk 0:03:02.6]} 10. Nf3
{[%clk 0:03:03.2]} 10... Be6 {[%clk 0:03:02.7]} 11. O-O {[%clk 0:03:03.1]} 11...
Nbd7 {[%clk 0:03:02.9]} 12. a3 {[%clk 0:03:02.9]} 12... Qc7 {[%clk 0:03:03.3]}
13. Rac1 {[%clk 0:02:42.9]} 13... a6 {[%clk 0:03:02]} 14. b4 {[%clk 0:02:34.9]}
14... Bg4 {[%clk 0:03:02.1]} 15. Bg3 {[%clk 0:02:35.3]} 15... Bxg3 {[%clk
0:03:02.4]} 16. hxg3 {[%clk 0:02:34.7]} 16... Qd6 {[%clk 0:03:03.1]} 17. Na4
{[%clk 0:02:30.7]} 17... a5 {[%clk 0:02:58.1]} 18. Nc5 {[%clk 0:02:29.7]} 18...
axb4 {[%clk 0:02:55.9]} 19. axb4 {[%clk 0:02:30.6]} 19... Qb8 {[%clk 0:02:40.9]}
20. Ra1 {[%clk 0:02:25.2]} 20... Rxa1 {[%clk 0:02:37.2]} 21. Rxa1 {[%clk
0:02:26.1]} 21... b5 {[%clk 0:02:37.4]} 22. Nxd7 {[%clk 0:02:22.3]} 22... Bxd7
{[%clk 0:02:38.3]} 23. Ne5 {[%clk 0:02:22.2]} 23... Qd6 {[%clk 0:02:39.1]} 24.
Qc5 {[%clk 0:02:19.7]} 24... Qxc5 {[%clk 0:02:39.7]} 25. bxc5 {[%clk 0:02:20.6]}
25... Rc8 {[%clk 0:02:24.1]} 26. Ra7 {[%clk 0:02:20]} 26... Be8 {[%clk
0:02:24.1]} 27. Bf5 {[%clk 0:01:59.2]} 27... Rb8 {[%clk 0:02:22.3]} 28. Rc7
{[%clk 0:01:54.8]} 28... g6 {[%clk 0:02:08.1]} 29. Rc8 {[%clk 0:01:10.7]} 29...
Rxc8 {[%clk 0:01:57.6]} 30. Bxc8 {[%clk 0:01:11.6]} 30... b4 {[%clk 0:01:48]}
31. Kf1 {[%clk 0:00:59.1]} 31... Ne4 {[%clk 0:01:44.5]} 32. Nd3 {[%clk 0:00:54]}
32... b3 {[%clk 0:01:43]} 33. Ke2 {[%clk 0:00:41.9]} 33... h5 {[%clk 0:01:18.1]}
34. g4 {[%clk 0:00:19.8]} 34... h4 {[%clk 0:01:18.1]} 35. f3 {[%clk 0:00:18.7]}
35... Ng3+ {[%clk 0:01:18.3]} 36. Kd2 {[%clk 0:00:18]} 36... f6 {[%clk
0:01:13.4]} 37. Be6+ {[%clk 0:00:14.7]} 37... Kf8 {[%clk 0:01:12.7]} 38. Kc3
{[%clk 0:00:12.9]} 38... Nf1 {[%clk 0:01:12.4]} 39. e4 {[%clk 0:00:09.9]} 39...
Ne3 {[%clk 0:01:13.1]} 40. exd5 {[%clk 0:00:08.2]} 40... cxd5 {[%clk 0:01:14]}
41. Nf4 {[%clk 0:00:06.8]} 41... g5 {[%clk 0:01:12.8]} 42. Nxd5 {[%clk
0:00:07.2]} 42... Nxg2 {[%clk 0:01:13.1]} 43. Nxf6 {[%clk 0:00:05.6]} 43... h3
{[%clk 0:01:13.6]} 44. Ne4 {[%clk 0:00:05.7]} 44... h2 {[%clk 0:01:08.7]} 45.
Ng3 {[%clk 0:00:05.8]} 45... Nf4 {[%clk 0:01:07.3]} 46. Bf5 {[%clk 0:00:05.7]}
46... Ne2+ {[%clk 0:01:07.5]} 0-1

[Event "Late-Titled-Tuesday-Blitz-May-14-2024"]
[Site "Chess.com"]
[Date "2024.05.14"]
[Round "7"]
[White "Boorchess"]
[Black "TheBigBadChessDad"]
[Result "1-0"]
[WhiteElo "2580"]
[BlackElo "2277"]
[TimeControl "180+1"]
[EndTime "15:16:14 PDT"]
[Termination "Boorchess won on time"]

1. d4 {[%clk 0:03:00.9]} 1... c6 {[%clk 0:02:58.3]} 2. c4 {[%clk 0:03:00]} 2...
d5 {[%clk 0:02:58.4]} 3. cxd5 {[%clk 0:03:00.3]} 3... cxd5 {[%clk 0:02:58.4]} 4.
Nc3 {[%clk 0:03:00.9]} 4... Nf6 {[%clk 0:02:58.4]} 5. f3 {[%clk 0:03:01.4]} 5...
Nc6 {[%clk 0:02:48.4]} 6. e4 {[%clk 0:03:01.3]} 6... dxe4 {[%clk 0:02:48.1]} 7.
d5 {[%clk 0:03:01.6]} 7... Ne5 {[%clk 0:02:45.8]} 8. fxe4 {[%clk 0:03:01.8]}
8... a6 {[%clk 0:02:37.3]} 9. Qd4 {[%clk 0:03:00.1]} 9... Qc7 {[%clk 0:02:24.8]}
10. Bf4 {[%clk 0:02:52.5]} 10... Nd3+ {[%clk 0:02:22.7]} 11. Bxd3 {[%clk
0:02:52.1]} 11... Qxf4 {[%clk 0:02:22.8]} 12. Nf3 {[%clk 0:02:52.1]} 12... Ng4
{[%clk 0:02:10.8]} 13. O-O {[%clk 0:02:32.1]} 13... e5 {[%clk 0:02:06.1]} 14.
dxe6 {[%clk 0:02:29.7]} 14... Bxe6 {[%clk 0:02:05.9]} 15. Rae1 {[%clk
0:02:12.5]} 15... Rd8 {[%clk 0:01:48.2]} 16. Nd5 {[%clk 0:02:11.7]} 16... Qd6
{[%clk 0:01:28.6]} 17. b4 {[%clk 0:01:53.3]} 17... f6 {[%clk 0:01:22.5]} 18. a3
{[%clk 0:01:44.6]} 18... Ne5 {[%clk 0:01:16.2]} 19. Nxe5 {[%clk 0:01:39.5]}
19... Qxe5 {[%clk 0:01:09.5]} 20. Qxe5 {[%clk 0:01:34.8]} 20... fxe5 {[%clk
0:01:10.4]} 21. Nc7+ {[%clk 0:01:31.8]} 21... Ke7 {[%clk 0:00:57.7]} 22. Nxe6
{[%clk 0:01:16.9]} 22... Rxd3 {[%clk 0:00:45.4]} 23. Ng5 {[%clk 0:01:00]} 23...
h6 {[%clk 0:00:33]} 24. Nf7 {[%clk 0:00:57.4]} 24... Rg8 {[%clk 0:00:32.8]} 25.
Nxe5 {[%clk 0:00:56.9]} 25... Rxa3 {[%clk 0:00:31.6]} 26. Ng6+ {[%clk
0:00:55.6]} 26... Ke8 {[%clk 0:00:31.5]} 27. Rc1 {[%clk 0:00:54.1]} 27... Be7
{[%clk 0:00:15.9]} 28. Nxe7 {[%clk 0:00:39.4]} 28... Kxe7 {[%clk 0:00:16]} 29.
Rc7+ {[%clk 0:00:39.3]} 29... Ke6 {[%clk 0:00:16.5]} 30. Rxb7 {[%clk 0:00:39.4]}
30... Ke5 {[%clk 0:00:11.1]} 31. Re7+ {[%clk 0:00:35.7]} 31... Kd4 {[%clk
0:00:11.4]} 32. h3 {[%clk 0:00:31]} 32... Ke3 {[%clk 0:00:04.9]} 33. Rf3+ {[%clk
0:00:30.5]} 33... Ke2 {[%clk 0:00:05.2]} 34. Rxa3 {[%clk 0:00:29.2]} 1-0

[Event "Late-Titled-Tuesday-Blitz-May-14-2024"]
[Site "Chess.com"]
[Date "2024.05.14"]
[Round "7"]
[White "sergeikim"]
[Black "Godzillator"]
[Result "0-1"]
[WhiteElo "2599"]
[BlackElo "2444"]
[TimeControl "180+1"]
[EndTime "15:16:15 PDT"]
[Termination "Godzillator won by resignation"]

1. d4 {[%clk 0:03:00.9]} 1... d5 {[%clk 0:02:58.9]} 2. c4 {[%clk 0:03:00.8]}
2... c6 {[%clk 0:02:59.3]} 3. Nf3 {[%clk 0:02:59.7]} 3... Nf6 {[%clk 0:02:59.4]}
4. Qc2 {[%clk 0:02:59.8]} 4... dxc4 {[%clk 0:02:59]} 5. Qxc4 {[%clk 0:02:59]}
5... Bf5 {[%clk 0:02:59]} 6. e3 {[%clk 0:02:59]} 6... e6 {[%clk 0:02:59.4]} 7.
Bd3 {[%clk 0:02:59.1]} 7... Bxd3 {[%clk 0:02:59]} 8. Qxd3 {[%clk 0:02:58.6]}
8... Be7 {[%clk 0:02:59.2]} 9. O-O {[%clk 0:02:58.6]} 9... O-O {[%clk
0:02:59.3]} 10. Nc3 {[%clk 0:02:58.7]} 10... c5 {[%clk 0:02:59.7]} 11. Rd1
{[%clk 0:02:57.9]} 11... cxd4 {[%clk 0:02:58.7]} 12. Nxd4 {[%clk 0:02:58]} 12...
Nbd7 {[%clk 0:02:57.3]} 13. e4 {[%clk 0:02:55]} 13... Nc5 {[%clk 0:02:57]} 14.
Qe2 {[%clk 0:02:55]} 14... Qb6 {[%clk 0:02:45.2]} 15. e5 {[%clk 0:02:53.9]}
15... Nfd7 {[%clk 0:02:43]} 16. Bf4 {[%clk 0:02:41.9]} 16... a6 {[%clk
0:02:41.4]} 17. Rac1 {[%clk 0:02:40.3]} 17... Rfd8 {[%clk 0:02:38.3]} 18. Nf3
{[%clk 0:02:38]} 18... Nf8 {[%clk 0:02:31.6]} 19. Bg5 {[%clk 0:02:30.8]} 19...
Bxg5 {[%clk 0:02:26.5]} 20. Nxg5 {[%clk 0:02:30.6]} 20... h6 {[%clk 0:02:25.8]}
21. Nge4 {[%clk 0:02:26.6]} 21... Nxe4 {[%clk 0:02:18.1]} 22. Nxe4 {[%clk
0:02:26.5]} 22... Ng6 {[%clk 0:02:16.3]} 23. Nc3 {[%clk 0:02:20]} 23... Nf4
{[%clk 0:02:10.2]} 24. Qe4 {[%clk 0:02:07.5]} 24... Qxb2 {[%clk 0:01:37.3]} 25.
Qxf4 {[%clk 0:02:04.5]} 25... Qxc3 {[%clk 0:01:27.3]} 26. h4 {[%clk 0:01:58.1]}
26... Qa5 {[%clk 0:01:20.8]} 27. Kh2 {[%clk 0:01:45.6]} 27... Rab8 {[%clk
0:01:04.2]} 28. a4 {[%clk 0:01:36.8]} 28... Rxd1 {[%clk 0:00:57.5]} 29. Rxd1
{[%clk 0:01:36.5]} 29... Rd8 {[%clk 0:00:57.3]} 30. Rc1 {[%clk 0:01:32.3]} 30...
b5 {[%clk 0:00:56.3]} 31. axb5 {[%clk 0:01:27.9]} 31... axb5 {[%clk 0:00:56.6]}
32. Rc5 {[%clk 0:01:26.6]} 32... Qa4 {[%clk 0:00:55.4]} 33. Qxa4 {[%clk
0:01:15.1]} 33... bxa4 {[%clk 0:00:55.2]} 34. Ra5 {[%clk 0:01:15.7]} 34... Rd4
{[%clk 0:00:54.9]} 35. g3 {[%clk 0:01:12.7]} 35... g5 {[%clk 0:00:55]} 36. h5
{[%clk 0:01:10.9]} 36... Re4 {[%clk 0:00:54]} 37. Kg2 {[%clk 0:01:08.8]} 37...
Kg7 {[%clk 0:00:53.3]} 38. f3 {[%clk 0:01:05.8]} 38... Rd4 {[%clk 0:00:53.3]}
39. g4 {[%clk 0:01:03.7]} 39... Rf4 {[%clk 0:00:46.3]} 40. Kf2 {[%clk 0:01:01]}
40... Kf8 {[%clk 0:00:46.5]} 41. Ra7 {[%clk 0:00:58.1]} 41... Ke8 {[%clk
0:00:46.1]} 42. Ke3 {[%clk 0:00:58.2]} 42... Kd8 {[%clk 0:00:45.7]} 43. Ra8+
{[%clk 0:00:41.9]} 43... Kc7 {[%clk 0:00:45.6]} 44. Rh8 {[%clk 0:00:40.2]} 44...
Kb7 {[%clk 0:00:40.7]} 45. Rxh6 {[%clk 0:00:39.3]} 45... a3 {[%clk 0:00:41]} 46.
Rf6 {[%clk 0:00:33.7]} 46... Rxf6 {[%clk 0:00:34.4]} 47. exf6 {[%clk 0:00:33.4]}
47... a2 {[%clk 0:00:34.9]} 48. h6 {[%clk 0:00:34.3]} 48... a1=Q {[%clk
0:00:35.1]} 0-1